fUST/lending_fUST_20250701
["ID","MTS","AMOUNT","RATE_DAILY","PERIOD"]
[368712615,1751319039269,-460.0,0.00018513,2]
[368712616,1751319039278,-460.0,0.00018513,2]
[368712617,1751319039288,-460.0,0.00018513,2]
[368712618,1751319039297,-460.0,0.00018513,2]
[368712620,1751319039306,-504.45,0.00018513,2]
[368712621,1751319039315,-460.0,0.00018513,2]
[368712622,1751319039325,-460.0,0.00018513,2]
[368712623,1751319039335,-460.0,0.00018513,2]
[368712624,1751319039344,-460.0,0.00018513,2]
[368712626,1751319039354,-460.0,0.00018513,2]
[368712627,1751319039363,-460.0,0.00018513,2]
[368712628,1751319039372,-460.0,0.00018513,2]
[368712629,1751319039382,-200.12,0.00018513,2]
[368712630,1751319039391,-460.0,0.00018513,2]
[368712632,1751319039401,-380.79866265,0.00018513,2]
[368712633,1751319039414,-535.01,0.00018513,2]
[368712634,1751319039423,-460.0,0.00018513,2]
[368712635,1751319039434,-175.28,0.00018513,2]
[368712637,1751319039444,-460.0,0.00018513,2]
[368712638,1751319039453,-460.0,0.00018513,2]
[368712639,1751319039463,-460.0,0.00018513,2]
[368712640,1751319039473,-460.0,0.00018513,2]
[368712641,1751319039483,-460.0,0.00018513,2]
[368712643,1751319039492,-460.0,0.00018513,2]
[368712644,1751319039501,-236.67794614,0.00018513,2]
[368712645,1751319039511,-266.06,0.00018513,2]
[368712646,1751319039520,-460.0,0.00018513,2]
[368712647,1751319039530,-460.0,0.00018513,2]
[368712649,1751319039540,-231.06,0.00018513,2]
[368712650,1751319039550,-367.06,0.00018513,2]
[368712651,1751319039559,-460.0,0.00018513,2]
[368712652,1751319039569,-460.0,0.00018513,2]
[368712654,1751319039578,-460.0,0.00018513,2]
[368712655,1751319039588,-460.0,0.00018513,2]
[368712656,1751319039597,-460.0,0.00018513,2]
[368712657,1751319039607,-402.82503396,0.00018514,2]
[368712658,1751319039616,-460.0,0.00018514,2]
[368712660,1751319039626,-460.0,0.00018514,2]
[368712661,1751319039636,-460.0,0.00018514,2]
[368712662,1751319039646,-460.0,0.00018514,2]
[368712663,1751319039656,-460.0,0.00018514,2]
[368712665,1751319039666,-460.0,0.00018514,2]
[368712668,1751319039676,-460.0,0.00018514,2]
[368712670,1751319039686,-460.0,0.00018514,2]
[368712672,1751319039696,-460.0,0.00018514,2]
[368712673,1751319039706,-518.94,0.00018514,2]
[368712675,1751319039720,-460.0,0.00018514,2]
[368712680,1751319039894,-460.0,0.00018514,2]
[368712681,1751319039906,-460.0,0.00018514,2]
[368712682,1751319039916,-460.0,0.00018514,2]
[368712683,1751319039926,-500.0,0.00018514,2]
[368712685,1751319039936,-460.0,0.00018514,2]
[368712686,1751319039946,-460.0,0.00018514,2]
[368712687,1751319039956,-460.0,0.00018514,2]
[368712688,1751319039966,-222.28,0.00018514,2]
[368712690,1751319039975,-460.0,0.00018514,2]
[368712691,1751319039985,-460.0,0.00018514,2]
[368712692,1751319039995,-460.0,0.00018514,2]
[368712693,1751319040005,-460.0,0.00018514,2]
[368712694,1751319040014,-460.0,0.00018514,2]
[368712696,1751319040024,-460.0,0.00018514,2]
[368712697,1751319040033,-460.0,0.00018514,2]
[368712698,1751319040043,-460.0,0.00018514,2]
[368712699,1751319040052,-560.61,0.00018514,2]
[368712700,1751319040062,-541.9,0.00018514,2]
[368712702,1751319040072,-460.0,0.00018515,2]
[368712703,1751319040081,-546.04,0.00018515,2]
[368712704,1751319040091,-460.0,0.00018515,2]
[368712705,1751319040101,-460.0,0.00018515,2]
[368712707,1751319040110,-460.0,0.00018515,2]
[368712708,1751319040120,-460.0,0.00018515,2]
[368712709,1751319040130,-527.32021887,0.00018515,2]
[368712710,1751319040140,-460.0,0.00018515,2]
[368712712,1751319040151,-460.0,0.00018515,2]
[368712713,1751319040162,-460.0,0.00018515,2]
[368712714,1751319040171,-460.0,0.00018515,2]
[368712715,1751319040180,-468.8429287,0.00018682,2]
[368712716,1751319040190,-460.0,0.00018786,2]
[368712718,1751319040200,-460.0,0.00018786,2]
[368712719,1751319040210,-460.0,0.00018786,2]
[368712720,1751319040220,-460.0,0.00018786,2]
[368712721,1751319040232,-500.0,0.00018786,2]
[368712723,1751319040242,-500.0,0.00018786,2]
[368712724,1751319040253,-500.0,0.00018786,2]
[368712725,1751319040264,-500.0,0.00018786,2]
[368712726,1751319040274,-500.0,0.00018786,2]
[368712727,1751319040284,-173.11329458,0.00018786,2]
[368712729,1751319040294,-500.0,0.00018786,2]
[368712730,1751319040304,-500.0,0.00018786,2]
[368712731,1751319040313,-500.0,0.00018786,2]
[368712732,1751319040322,-500.0,0.00018786,2]
[368712734,1751319040333,-500.0,0.00018786,2]
[368712735,1751319040346,-500.0,0.00018786,2]
[368712736,1751319040356,-437.29118662,0.00018786,2]
[368712737,1751319040366,-505.24193161,0.00018786,2]
[368712739,1751319040376,-500.0,0.00018786,2]
[368712740,1751319040387,-500.0,0.00018786,2]
[368712741,1751319040396,-500.0,0.00018786,2]
[368712742,1751319040406,-500.0,0.00018786,2]
[368712743,1751319040416,-460.0,0.00018787,2]
[368712745,1751319040425,-198.07,0.00018787,2]
[368712746,1751319040435,-460.0,0.00018787,2]
[368712747,1751319040445,-460.0,0.00018787,2]
[368712748,1751319040456,-460.0,0.00018787,2]
[368712750,1751319040465,-460.0,0.00018787,2]
[368712751,1751319040476,-460.0,0.00018787,2]
[368712752,1751319040485,-460.0,0.00018787,2]
[368712753,1751319040495,-502.3,0.00018787,2]
[368712754,1751319040505,-460.0,0.00018787,2]
[368712756,1751319040515,-186.67229552,0.00018787,2]
[368712757,1751319040525,-460.0,0.00018787,2]
[368712758,1751319040534,-460.0,0.00018787,2]
[368712759,1751319040544,-460.0,0.00018787,2]
[368712761,1751319040553,-335.96,0.00018787,2]
[368712762,1751319040563,-460.0,0.00018787,2]
[368712763,1751319040573,-303.08,0.00018788,2]
[368712764,1751319040583,-265.62,0.00018788,2]
[368712766,1751319040592,-460.0,0.00018788,2]
[368712767,1751319040603,-460.0,0.00018788,2]
[368712768,1751319040612,-460.0,0.00018788,2]
[368712769,1751319040622,-460.0,0.00018788,2]
[368712770,1751319040631,-460.0,0.00018788,2]
[368712772,1751319040641,-460.0,0.00018788,2]
[368712773,1751319040650,-1173.68185765,0.00019,2]
[368712774,1751319040659,-306.0,0.00019,2]
[368712775,1751319040669,-460.0,0.0001906,2]
[368712776,1751319040678,-460.0,0.0001906,2]
[368712778,1751319040688,-460.0,0.0001906,2]
[368712779,1751319040698,-539.02924192,0.00019061,2]
[368712780,1751319040708,-636.41,0.00019061,2]
[368712781,1751319040721,-460.0,0.00019061,2]
[368712783,1751319040731,-460.0,0.00019061,2]
[368712784,1751319040741,-460.0,0.00019061,2]
[368712785,1751319040750,-460.0,0.00019061,2]
[368712786,1751319040762,-460.0,0.00019061,2]
[368712788,1751319040771,-542.67,0.00019061,2]
[368712789,1751319040782,-460.0,0.00019061,2]
[368712790,1751319040792,-492.7,0.00019061,2]
[368712791,1751319040802,-460.0,0.00019061,2]
[368712792,1751319040811,-260.46,0.00019062,2]
[368712794,1751319040821,-250.02,0.00019062,2]
[368712795,1751319040831,-460.0,0.00019062,2]
[368712796,1751319040840,-460.0,0.00019062,2]
[368712797,1751319040850,-460.0,0.00019062,2]
[368712799,1751319040860,-500.0,0.00019265,2]
[368712800,1751319040869,-500.0,0.00019296,2]
[368712801,1751319040879,-460.0,0.00019334,2]
[368712802,1751319040889,-460.0,0.00019334,2]
[368712804,1751319040898,-460.0,0.00019334,2]
[368712805,1751319040907,-460.0,0.00019335,2]
[368712806,1751319040918,-460.0,0.00019335,2]
[368712807,1751319040927,-460.0,0.00019335,2]
[368712808,1751319040937,-460.0,0.00019335,2]
[368712810,1751319040947,-460.0,0.00019335,2]
[368712811,1751319040957,-460.0,0.00019335,2]
[368712812,1751319040966,-460.0,0.00019335,2]
[368712813,1751319040978,-473.4,0.00019336,2]
[368712815,1751319040988,-460.0,0.00019336,2]
[368712816,1751319040997,-460.0,0.00019336,2]
[368712817,1751319041006,-291.91341314,0.00019337,2]
[368712818,1751319041016,-384.59203907,0.00019608,2]
[368712820,1751319041026,-460.0,0.00019608,2]
[368712821,1751319041036,-460.0,0.00019608,2]
[368712822,1751319041045,-584.6895063,0.00019609,2]
[368712823,1751319041055,-460.0,0.00019609,2]
[368712825,1751319041065,-460.0,0.00019609,2]
[368712826,1751319041074,-460.0,0.00019609,2]
[368712827,1751319041084,-460.0,0.00019609,2]
[368712828,1751319041094,-412.81004949,0.0001961,2]
[368712830,1751319041109,-47.18995051,0.0001961,2]
[368712831,1751319041118,-460.0,0.0001961,2]
[368712832,1751319041127,-305.47029316,0.00019882,2]
[368712833,1751319041139,-154.52970684,0.00019882,2]
[368712835,1751319041148,-460.0,0.00019882,2]
[368712836,1751319041158,-148.53229316,0.00019883,2]
[368712837,1751319041169,-311.46770684,0.00019883,2]
[368712838,1751319041179,-460.0,0.00019883,2]
[368712840,1751319041188,-420.0,0.00019883,2]
[368712841,1751319041198,-460.0,0.00019883,2]
[368712842,1751319041208,-241.08993365,0.00019884,2]
[368712843,1751319041217,-460.0,0.00019884,2]
[368712845,1751319041226,-602.86579833,0.000199,2]
[368712846,1751319041236,-602.86579812,0.00020072,2]
[368712847,1751319041245,-460.0,0.00020156,2]
[368712848,1751319041255,-460.0,0.00020156,2]
[368712849,1751319041265,-460.0,0.00020157,2]
[368712851,1751319041274,-356.44,0.00020157,2]
[368712852,1751319041285,-460.0,0.00020157,2]
[368712853,1751319041294,-460.0,0.00020158,2]
[368712854,1751319041304,-361.484572,0.00020187,2]
[368712856,1751319041314,-420.0,0.00020188,2]
[368712857,1751319041324,-602.86579812,0.00020245,2]
[368712858,1751319041334,-291.91341314,0.00020259,2]
[368712859,1751319041344,-468.8429287,0.00020291,2]
[368712861,1751319041353,-160.0,0.00020332,2]
[368712862,1751319041363,-1941.19682387,0.00020332,2]
[368712863,1751319041375,-10627.93549429,0.00020332,2]
[368712864,1751319041384,-847.41730813,0.00020332,2]
[368712866,1751319041394,-160.0,0.00020332,2]
[368712867,1751319041404,-230.31346914,0.00020332,2]
[368712868,1751319041414,-837.16779106,0.00020332,2]
[368712869,1751319041423,-214.99848635,0.00020332,2]
[368712871,1751319041433,-160.0,0.00020332,2]
[368712872,1751319041443,-213.84631524,0.00020332,2]
[368712873,1751319041452,-160.0,0.00020342,2]
[368712874,1751319041462,-602.86579812,0.00020417,3]
[368712876,1751319041471,-460.0,0.0002043,2]
[368712877,1751319041481,-460.0,0.0002043,2]
[368712878,1751319041490,-460.0,0.00020431,2]
[368712879,1751319041500,-460.0,0.00020431,2]
[368712880,1751319041509,-460.0,0.00020432,2]
[368712882,1751319041519,-163.749,0.00020478,2]
[368712883,1751319041529,-602.86579812,0.0002059,3]
[368712884,1751319041539,-2179.37,0.000206,2]
[368712885,1751319041549,-460.0,0.00020704,2]
[368712887,1751319041558,-460.0,0.00020704,2]
[368712888,1751319041568,-460.0,0.00020705,2]
[368712889,1751319041577,-460.0,0.00020705,2]
[368712890,1751319041588,-460.0,0.00020706,2]
[368712892,1751319041597,-602.86579812,0.00020762,3]
[368712893,1751319041606,-460.0,0.00020849,2]
[368712894,1751319041616,-349.82435402,0.00020849,2]
[368712895,1751319041626,-460.0,0.00020849,2]
[368712896,1751319041636,-431.87341158,0.00020849,2]
[368712898,1751319041645,-431.65846597,0.00020849,2]
[368712899,1751319041655,-460.62415949,0.00020849,2]
[368712900,1751319041665,-460.0,0.00020849,2]
[368712901,1751319041675,-460.0,0.00020849,2]
[368712903,1751319041684,-460.0,0.00020849,2]
[368712904,1751319041694,-279.56492929,0.00020849,2]
[368712905,1751319041704,-438.51630679,0.00020849,2]
[368712906,1751319041716,-460.0,0.00020849,2]
[368712908,1751319041726,-460.0,0.00020849,2]
[368712909,1751319041737,-462.05509411,0.00020849,2]
[368712910,1751319041746,-207.4,0.00020851,2]
[368712911,1751319041758,-500.0,0.00020851,2]
[368712912,1751319041771,-500.0,0.00020851,2]
[368712913,1751319041782,-500.0,0.00020851,2]
[368712914,1751319041793,-500.0,0.00020851,2]
[368712915,1751319041803,-173.60415826,0.00020851,2]
[368712916,1751319041812,-602.86579812,0.00020934,4]
[368712917,1751319041821,-460.0,0.00020978,2]
[368712918,1751319041831,-171.1,0.00020978,2]
[368712919,1751319041841,-460.0,0.00020979,2]
[368712920,1751319041856,-460.0,0.00020979,2]
[368712921,1751319041866,-460.0,0.0002098,2]
[368712922,1751319041876,-602.86579812,0.00021107,4]
[368712923,1751319041886,-167.39,0.00021123,2]
[368712924,1751319041895,-291.91341314,0.00021182,2]
[368712925,1751319041905,-500.0,0.00021205,2]
[368712926,1751319041914,-460.0,0.00021252,2]
[368712927,1751319041924,-594.90497321,0.00021253,2]
[368712928,1751319041934,-460.0,0.00021253,2]
[368712929,1751319041943,-460.0,0.00021254,2]
[368712930,1751319041953,-602.86579812,0.00021279,5]
[368712931,1751319041963,-602.86579812,0.00021452,5]
[368712933,1751319041973,-460.0,0.00021526,2]
[368712934,1751319041984,-526.57644643,0.00021527,2]
[368712935,1751319041997,-460.0,0.00021528,2]
[368712936,1751319042006,-602.86579812,0.00021624,5]
[368712937,1751319042016,-602.86579812,0.00021797,6]
[368712938,1751319042025,-460.0,0.000218,2]
[368712939,1751319042035,-460.0,0.00021802,2]
[368712940,1751319042045,-1015.89,0.000219,2]
[368712941,1751319042054,-468.8429287,0.000219,2]
[368712942,1751319042064,-500.0,0.00021917,2]
[368712943,1751319042073,-500.0,0.00021917,2]
[368712945,1751319042083,-500.0,0.00021917,2]
[368712946,1751319042093,-500.0,0.00021917,2]
[368712947,1751319042102,-500.0,0.00021917,2]
[368712948,1751319042112,-500.0,0.00021917,2]
[368712949,1751319042122,-500.0,0.00021917,2]
[368712951,1751319042132,-1317.7223025,0.00021918,7]
[368712952,1751319042142,-400.0,0.00021918,7]
[368712953,1751319042151,-151.0,0.00021954,2]
[368712954,1751319042160,-500.0,0.00021954,2]
[368712956,1751319042171,-602.86579812,0.00021969,6]
[368712957,1751319042180,-500.0,0.00021973,2]
[368712958,1751319042191,-151.0,0.00021981,2]
[368712959,1751319042200,-500.0,0.00021981,2]
[368712960,1751319042210,-502.11077349,0.00021998,2]
[368712962,1751319042220,-500.0,0.00021998,2]
[368712963,1751319042230,-502.11077349,0.00021998,2]
[368712964,1751319042239,-502.11077349,0.00021998,2]
[368712965,1751319042249,-200.1302606,0.00021998,2]
[368712966,1751319042260,-502.11077349,0.00021998,2]
[368712968,1751319042270,-502.11077349,0.00021998,2]
[368712969,1751319042279,-502.11077349,0.00021998,2]
[368712970,1751319042289,-502.11077349,0.00021998,2]
[368712971,1751319042299,-502.11077349,0.00021998,2]
[368712973,1751319042310,-502.11077349,0.00021998,2]
[368712974,1751319042320,-502.11077349,0.00021998,2]
[368712975,1751319042330,-502.11077349,0.00021998,2]
[368712976,1751319042340,-502.11077349,0.00021998,2]
[368712977,1751319042353,-502.11077349,0.00021998,2]
[368712979,1751319042367,-502.11077349,0.00021998,2]
[368712980,1751319042376,-502.11077349,0.00021998,2]
[368712981,1751319042386,-502.11077349,0.00021998,2]
[368712982,1751319042396,-502.11077349,0.00021998,2]
[368712983,1751319042406,-520.36934708,0.00021998,2]
[368712985,1751319042416,-520.36934708,0.00021998,2]
[368712986,1751319042425,-520.36934708,0.00021998,2]
[368712987,1751319042435,-520.36934708,0.00021998,2]
[368712988,1751319042445,-520.36934708,0.00021998,2]
[368712990,1751319042455,-520.36934708,0.00021998,2]
[368712991,1751319042465,-520.36934708,0.00021998,2]
[368712992,1751319042474,-520.36934708,0.00021998,2]
[368712993,1751319042484,-520.36934708,0.00021998,2]
[368712994,1751319042494,-520.36934708,0.00021998,2]
[368712996,1751319042504,-520.36934708,0.00021998,2]
[368712997,1751319042513,-75116.99563664,0.00021999,2]
[368712998,1751319042523,-2179.37,0.00022,7]
[368712999,1751319042533,-167.0,0.00022,2]
[368713000,1751319042543,-37863.91073517,0.00022,2]
[368713002,1751319042554,-103793.36342251,0.00022,5]
[368713037,1751319044025,-148.51989325,0.00022,5]
[368713047,1751319044434,-62.87641494,0.00022,5]
[368713048,1751319044459,-259.5,0.00021988,10]
[368713052,1751319044552,-104.86078514,0.00021988,10]
[368713054,1751319044599,336.97990508,0.00024973,60]
[368713089,1751319046181,-1583.78213431,0.00022,5]
[368717605,1751319948149,-231.1736499,0.00018511,2]
[368717606,1751319950091,-968.8263501,0.00018511,2]
[368717607,1751319950113,-196.23326347,0.00018512,2]
[368717608,1751320042347,-300.0,0.00018512,2]
[368717609,1751320042370,-300.0,0.00018512,2]
[368717610,1751320042391,-460.0,0.00018513,2]
[368717611,1751320042413,-387.35604475,0.00018513,2]
[368717612,1751320044097,-72.64395525,0.00018513,2]
[368717613,1751320044120,-108.68608961,0.00018513,2]
[368717614,1751320053155,-351.31391039,0.00018513,2]
[368717615,1751320053179,-460.0,0.00018513,2]
[368717616,1751320053201,-500.0,0.00018513,2]
[368717617,1751320053224,-460.0,0.00018513,2]
[368717618,1751320053247,-496.12266265,0.00018513,2]
[368717619,1751320053268,-460.0,0.00018513,2]
[368717620,1751320053291,-460.0,0.00018513,2]
[368717621,1751320053311,-460.0,0.00018514,2]
[368717622,1751320053331,-460.0,0.00018514,2]
[368717623,1751320053352,-460.0,0.00018514,2]
[368717624,1751320053373,-179.6981978,0.00018514,2]
[368717625,1751320053395,-460.0,0.00018514,2]
[368717626,1751320053416,-460.0,0.00018514,2]
[368717627,1751320053437,-602.76900987,0.00018514,2]
[368717628,1751320053456,-460.0,0.00018514,2]
[368717629,1751320053477,-460.0,0.00018514,2]
[368717630,1751320053498,-520.74,0.00018514,2]
[368717631,1751320053519,-460.0,0.00018514,2]
[368717632,1751320053540,-536.49508493,0.00018781,2]
[368717633,1751320053560,-163.0,0.00018787,2]
[368717634,1751320053583,-460.0,0.00018787,2]
[368717635,1751320053605,-460.0,0.00018787,2]
[368717636,1751320053628,-460.0,0.00019061,2]
[368717637,1751320053650,-460.0,0.00019335,2]
[368717638,1751320053672,-236.67432594,0.00019415,2]
[368717639,1751320053694,-540.66936509,0.00019514,2]
[368717640,1751320053715,-608.42,0.00019514,2]
[368717641,1751320053736,-497.48,0.00019514,2]
[368717642,1751320053758,-216.97532835,0.00019514,2]
[368717643,1751320157111,-545.7181972,0.000189,2]
[368717644,1751320157133,-219.40932071,0.00019442,2]
[368717645,1751320157155,-460.0,0.00019513,2]
[368717646,1751320157178,-460.0,0.00019513,2]
[368717647,1751320157201,-300.0,0.00019513,2]
[368717648,1751320157224,-460.0,0.00019513,2]
[368717649,1751320157247,-332.74467165,0.00019514,2]
[368717650,1751320157269,-517.02,0.00019514,2]
[368717651,1751320157291,-500.0,0.00019514,2]
[368717652,1751320157313,-521.86,0.00019514,2]
[368717653,1751320157335,-460.0,0.00019514,2]
[368717654,1751320157358,-437.83,0.00019514,2]
[368717655,1751320157379,-550.84,0.00019514,2]
[368717656,1751320157400,-460.0,0.00019514,2]
[368717657,1751320157421,-460.0,0.00019514,2]
[368717658,1751320157442,-460.0,0.00019514,2]
[368717659,1751320157462,-518.76677556,0.00019514,2]
[368717660,1751320157482,-360.68929597,0.00019514,2]
[368717661,1751320157504,-509.51,0.00019514,2]
[368717662,1751320157524,-500.0,0.00019514,2]
[368717663,1751320157546,-460.0,0.00019514,2]
[368717664,1751320157567,-474.43,0.00019514,2]
[368717665,1751320157592,-229.32812729,0.00019514,2]
[368717666,1751320157614,-582.13481006,0.00019514,2]
[368717667,1751320157635,-460.0,0.00019514,2]
[368717668,1751320157655,-467.72523304,0.00019514,2]
[368717669,1751320157676,-460.4,0.00019514,2]
[368717670,1751320157698,-460.0,0.00019514,2]
[368717671,1751320157719,-460.0,0.00019514,2]
[368717672,1751320157741,-326.06,0.00019514,2]
[368717673,1751320157763,-545.3854348,0.00019514,2]
[368717674,1751320157785,-460.0,0.00019514,2]
[368717675,1751320157806,-460.0,0.00019514,2]
[368717676,1751320157828,-460.0,0.00019514,2]
[368717677,1751320157850,-525.12,0.00019514,2]
[368717678,1751320157872,-460.0,0.00019514,2]
[368717679,1751320157893,-392.99978889,0.00019514,2]
[368717680,1751320160163,-67.00021111,0.00019514,2]
[368717681,1751320160186,-558.85,0.00019514,2]
[368717682,1751320160210,-460.0,0.00019514,2]
[368717683,1751320160232,-291.87344977,0.00019514,2]
[368717684,1751320160254,-460.0,0.00019514,2]
[368717685,1751320160276,-460.0,0.00019514,2]
[368717686,1751320160300,-460.0,0.00019514,2]
[368717687,1751320160322,-460.0,0.00019514,2]
[368717688,1751320160343,-460.0,0.00019514,2]
[368717689,1751320160366,-460.68,0.00019514,2]
[368717690,1751320160388,-460.0,0.00019514,2]
[368717691,1751320160410,-431.55632666,0.00019514,2]
[368717692,1751320160431,-534.16434363,0.00019515,2]
[368717693,1751320160457,-352.56814384,0.00019515,2]
[368717694,1751320160478,-500.0,0.00019515,2]
[368717695,1751320160500,-500.0,0.00019515,2]
[368717696,1751320160522,-180.69708439,0.00019515,2]
[368717697,1751320160545,-500.0,0.00019515,2]
[368717698,1751320160567,-267.04316431,0.00019515,2]
[368717699,1751320160588,-460.0,0.00019515,2]
[368717700,1751320160608,-460.0,0.00019515,2]
[368717701,1751320160630,-572.36,0.00019515,2]
[368717702,1751320160651,-460.0,0.00019515,2]
[368717703,1751320160673,-460.0,0.00019515,2]
[368717704,1751320160695,-420.58158298,0.00019515,2]
[368717705,1751320160717,-460.0,0.00019515,2]
[368717706,1751320160739,-460.0,0.00019515,2]
[368717707,1751320160761,-508.99715751,0.00019515,2]
[368717708,1751320160782,-460.0,0.00019515,2]
[368717709,1751320160803,-474.02210447,0.00019515,2]
[368717710,1751320160824,-460.0,0.00019515,2]
[368717711,1751320160845,-460.0,0.00019515,2]
[368717712,1751320160867,-493.9882738,0.00019515,2]
[368717713,1751320160892,-460.0,0.00019515,2]
[368717714,1751320160915,-460.0,0.00019515,2]
[368717715,1751320160936,-460.0,0.00019515,2]
[368717716,1751320160957,-460.49623825,0.00019515,2]
[368717717,1751320160978,-460.0,0.00019515,2]
[368717718,1751320160999,-435.41334511,0.00019515,2]
[368717719,1751320161024,-500.0,0.00019515,2]
[368717720,1751320161048,-39.23377819,0.00019515,2]
[368717721,1751320161100,-420.76622181,0.00019515,2]
[368717722,1751320161121,-500.0,0.00019515,2]
[368717723,1751320161143,-460.0,0.00019515,2]
[368717724,1751320161166,-460.0,0.00019515,2]
[368717725,1751320161189,-8780.0374068,0.00019516,2]
[368717732,1751320232284,-363.81213147,0.000189,2]
[368717733,1751320232294,-460.0,0.00019513,2]
[368717734,1751320232304,-300.0,0.00019513,2]
[368717735,1751320232313,-460.0,0.00019513,2]
[368717736,1751320232324,-591.01,0.00019514,2]
[368717737,1751320232333,-460.0,0.00019514,2]
[368717738,1751320232343,-500.0,0.00019514,2]
[368717739,1751320232352,-513.11,0.00019514,2]
[368717741,1751320232362,-582.93,0.00019514,2]
[368717743,1751320232371,-460.0,0.00019514,2]
[368717745,1751320232381,-460.0,0.00019514,2]
[368717747,1751320232390,-460.0,0.00019514,2]
[368717748,1751320232401,-304.70212859,0.00019514,2]
[368717750,1751320232410,-460.0,0.00019514,2]
[368717751,1751320232419,-460.0,0.00019514,2]
[368717753,1751320232428,-460.0,0.00019514,2]
[368717755,1751320232437,-460.0,0.00019514,2]
[368717757,1751320232447,-460.0,0.00019514,2]
[368717759,1751320232457,-460.0,0.00019514,2]
[368717761,1751320232467,-289.7873396,0.00019514,2]
[368717764,1751320232484,-170.2126604,0.00019514,2]
[368717766,1751320232494,-460.0,0.00019514,2]
[368717768,1751320232504,-460.0,0.00019514,2]
[368717770,1751320232513,-460.0,0.00019515,2]
[368717772,1751320232524,-51.27644503,0.00019516,2]
[368717885,1751320237606,338.177357,0.00013699,2]
[368717893,1751320238289,-635.3345685,0.00019514,2]
[368717894,1751320238403,-411.67469656,0.00019514,2]
[368717896,1751320238413,-16068.68614817,0.00019516,2]
[368717897,1751320238423,-500.0,0.00019542,2]
[368717898,1751320238433,-500.0,0.00019542,2]
[368717899,1751320238442,-380.0,0.0001957,2]
[368717900,1751320238452,-392.02510962,0.0001957,2]
[368717901,1751320238461,-460.0,0.00019609,2]
[368717902,1751320238471,-540.0,0.00019775,2]
[368717903,1751320238481,-460.0,0.00019788,2]
[368717904,1751320238491,-460.0,0.00019788,2]
[368717905,1751320238500,-537.28,0.00019788,2]
[368717906,1751320238509,-460.0,0.00019788,2]
[368717907,1751320238519,-460.0,0.00019788,2]
[368717908,1751320238528,-460.0,0.00019789,2]
[368717909,1751320238538,-460.0,0.00019789,2]
[368717910,1751320238548,-460.0,0.00019883,2]
[368717911,1751320238557,-245.06579728,0.00019963,2]
[368717912,1751320238566,-460.0,0.00020062,2]
[368717913,1751320238577,-460.0,0.00020062,2]
[368717914,1751320238587,-255.11,0.00020062,2]
[368717915,1751320238597,-460.0,0.00020062,2]
[368717916,1751320238606,-460.0,0.00020063,2]
[368717917,1751320238616,-608.48,0.00020063,2]
[368717918,1751320238626,-460.0,0.00020157,2]
[368717919,1751320238639,-338.177357,0.00020187,2]
[368717920,1751320238649,-213.84631524,0.00020259,2]
[368717921,1751320238659,-460.0,0.00020336,2]
[368717922,1751320238669,-460.0,0.00020336,2]
[368717923,1751320238680,-460.0,0.00020337,2]
[368717924,1751320238689,-460.0,0.00020431,2]
[368717925,1751320238700,-163.75073664,0.00020484,2]